Cogmind - Beta 13 @@@ ROGUE MODE // 2024.05.05 @ 15:51:51 Player: cptwinky Result: Escaped! Performance ------------- Evolutions (9) 4500 Regions Visited (18) 3600 Robots Destroyed (367) 1835 Value Destroyed (16291) 16291 Prototype IDs (48) 960 Alien Tech Used (0) 0 Bonus (12900) 12900 TOTAL SCORE: 40086 Bonus ------- High Alert Combat Kills 4249 Follower Combat Kills 877 Entered Garrisons 200 Acquired ECA 300 Met Warlord at Base 500 MAIN.C Attacked Warlord 500 Warlord Defense Kills 1754 Met Warlord at Research 2000 Win 3000 Friendly Fire -480 Cogmind --------- Core Integrity 1493/1600 Matter 242/300 Energy 694/715 System Corruption 2% Temperature Cool (19) Movement Treading (155) Location To Epsilon Eridani Parts ------- > --- POWER (3) -------- Reinforced Antimatter Reactor Reinforced Quantum Reactor Zero-point Reactor > --- PROPULSION (6) --- Biometal Heavy Treads Advanced Heavy Siege Treads Advanced Heavy Siege Treads > --- UTILITY (13) ----- Advanced Cooling System Large Storage Unit Long-range Sensor Array Advanced Signal Interpreter Advanced Targeting Computer Weapon Mount Experimental Core Analyzer Centrium Heavy Armor Plating Improved Hacking Suite Advanced Hacking Suite System Mapper System Shield > --- WEAPON (3) ------- Long-range Phase Cannon Long-range Phase Cannon Gamma Bomb Array > --- INVENTORY (15) --- Biometal Heavy Treads Advanced Heat Sink Experimental Transmission Jammer Advanced Thermal Shield Advanced Shield Generator Advanced Force Field Advanced Component Analysis Suite Long-range Tractor Beam Enhanced Nova Cannon Enhanced Nova Cannon Enhanced Nova Cannon Compact Linear Accelerator Fusion Bomb Launcher Shock Maul Peak State ------------ > --- POWER ------------ Reinforced Antimatter Reactor Reinforced Quantum Reactor Zero-point Reactor > --- PROPULSION ------- Biometal Heavy Treads Advanced Heavy Siege Treads Advanced Heavy Siege Treads > --- UTILITY ---------- Advanced Cooling System Advanced Coolant Injector Large Storage Unit Advanced Signal Interpreter Advanced Targeting Computer Experimental Core Analyzer Centrium Heavy Armor Plating Experimental Focal Shield Advanced Force Field Improved Hacking Suite Advanced Hacking Suite System Shield > --- WEAPON ----------- Long-range Phase Cannon Long-range Phase Cannon Enhanced Nova Cannon > --- INVENTORY -------- Biometal Heavy Treads Long-range Sensor Array Weapon Mount Experimental Transmission Jammer System Mapper Advanced Component Analysis Suite Long-range Tractor Beam Enhanced Nova Cannon Enhanced Nova Cannon Gamma Bomb Array Fusion Bomb Launcher Shock Maul [Rating: 196] Favorites ----------- Power Enhanced Nuclear Core Engine Heavy Ion Engine Power Core Enhanced Nuclear Core Reactor Vortex Chain Reactor Propulsion Spiked Heavy Treads Treads Spiked Heavy Treads Leg Myomer Leg Flight Unit Cooled Impulse Thruster Utility Large Storage Unit Device Improved Heat Sink Storage Large Storage Unit Processor Advanced Signal Interpreter Hackware Hacking Suite Protection Reactive Plating Weapon Assault Cannon Energy Gun Gatling Laser Energy Cannon Long-range Phase Cannon Ballistic Gun Railgun Ballistic Cannon Assault Cannon Launcher Grenade Launcher Special Weapon RU-N14's Throwing Claymores v3 Impact Weapon Shock Maul Slashing Weapon Great Axe Special Melee Weapon Improved Datajack Build | -11 -10 -10 -9 -9 -8 -8 -8 -7 -6 -5 -4 -4 -4 -4 -3 -3 -2 -1 ------- Run | Yrd Mat Min Mat Min Mat Gar Mat Fac Fac Fac Fac Upp Upp War Pro Res Res Acc Slots Evolved 18 | . . . 2 . 2 . . 2 2 2 2 . . . . 2 2 2 Power 2 | . . . . . . . . . 1 . . . . . . 1 . . Propulsion 4 | . . . 1 . . . . 1 1 1 . . . . . . . . Utility 11 | . . . 1 . 2 . . 1 . 1 1 . . . . 1 2 2 Weapon 1 | . . . . . . . . . . . 1 . . . . . . . Parts Attached 399 | 3 24 6 42 . 19 27 30 10 11 13 17 13 18 17 4 97 30 18 Power 25 | . 1 . 3 . 1 . 3 1 1 . . . 2 . . 10 3 . Engine 9 | . 1 . 3 . 1 . 3 . . . . . . . . 1 . . Core 4 | . . . . . . . . 1 1 . . . 2 . . . . . Reactor 12 | . . . . . . . . . . . . . . . . 9 3 . Propulsion 76 | 2 . . 13 . 2 4 6 4 3 3 5 6 1 3 . 16 8 . Treads 46 | 2 . . 13 . 2 4 3 . . . . 5 1 1 . 7 8 . Leg 29 | . . . . . . . 3 4 3 3 5 1 . 1 . 9 . . Wheel . | . . . . . . . . . . . . . . . . . . . Hover . | . . . . . . . . . . . . . . . . . . . Flight 1 | . . . . . . . . . . . . . . 1 . . . . Utility 133 | . 4 . 6 . 8 3 9 3 5 5 5 3 8 7 3 39 17 8 Device 77 | . . . 1 . 2 1 3 3 3 3 3 3 6 5 2 24 12 6 Storage 7 | . 2 . 1 . 1 . 2 . . . . . . . . 1 . . Processor 13 | . . . 1 . 1 . 1 . 1 1 . . . 1 1 4 2 . Hackware 7 | . . . . . 1 . . . . . 1 . . . . 3 . 2 Protection 29 | . 2 . 3 . 3 2 3 . 1 1 1 . 2 1 . 7 3 . Artifact . | . . . . . . . . . . . . . . . . . . . Weapon 165 | 1 19 6 20 . 8 20 12 2 2 5 7 4 7 7 1 32 2 10 Energy Gun 13 | . . . 1 . . 10 . . . . . . 2 . . . . . Energy Cannon 26 | . . . 3 . . . . . . . 1 . . . 1 14 2 5 Ballistic Gun 24 | 1 7 2 1 . 1 . 1 . . . 1 3 2 . . 5 . . Ballistic Cannon 34 | . 3 3 9 . 4 3 5 . . . . . . 1 . 6 . . Launcher 35 | . 7 1 6 . 2 2 1 . 1 2 2 . 2 . . 4 . 5 Special Weapon 7 | . 2 . . . . . . . . . . . . 3 . 2 . . Impact Weapon 13 | . . . . . 1 4 1 . . 3 . 1 . 2 . 1 . . Slashing Weapon 7 | . . . . . . . 2 1 1 . 3 . . . . . . . Piercing Weapon . | . . . . . . . . . . . . . . . . . . . Special Melee Weapon 6 | . . . . . . 1 2 1 . . . . 1 1 . . . . Unidentified Prototypes 14 | . . . 1 . . . . 1 . 1 1 . . 6 . 3 1 . Parts Lost 27 | . 1 . 2 . 1 1 2 . . 1 . . 3 . . 15 . 1 Power 5 | . 1 . 2 . . . . . . . . . . . . 2 . . Propulsion 2 | . . . . . . . . . . . . . . . . 2 . . Utility 19 | . . . . . 1 1 2 . . 1 . . 3 . . 10 . 1 Weapon 1 | . . . . . . . . . . . . . . . . 1 . . Highest Loss Streak 3 | . 1 . 1 . 1 1 2 . . 1 . . 2 . . 3 . 1 To Critical Strikes . | . . . . . . . . . . . . . . . . . . . Average Slot Usage (%) 93 | . 96 100 98 100 99 99 99 98 99 98 99 98 80 82 83 82 83 81 Engine 5 | . 14 14 9 11 9 9 9 3 . . . . . . . . . . Core 3 | . . . . . . . . 3 12 11 10 10 10 10 10 3 . . Reactor 1 | . . . . . . . . . . . . . . . . 5 9 12 Treads 18 | . 28 28 32 33 27 27 24 . . . . 2 15 14 15 10 11 12 Leg 5 | . . . . . . . 2 30 33 33 31 26 . . . 6 4 . Device 10 | . . . 4 . 7 11 14 13 13 10 10 10 16 20 20 13 17 13 Storage 7 | . 14 14 11 11 9 9 9 7 6 5 5 5 5 5 5 4 4 4 Processor 7 | . . . 10 11 9 6 3 7 6 11 10 9 5 5 5 12 8 12 Hackware 5 | . . . . . 9 9 9 7 6 4 4 5 5 2 . 3 8 12 Protection 7 | . 10 14 7 11 9 9 9 7 6 5 10 10 5 5 10 3 5 4 Energy Gun 1 | . . . . . . 15 3 . . . . . 1 . . . . . Energy Cannon 3 | . . . 8 11 6 . . . . . . . . . 1 5 12 11 Ballistic Gun 3 | . 25 . . . . . . . . . . 2 13 8 5 2 . . Ballistic Cannon 5 | . . 27 13 11 10 . 11 . . . . . . 2 5 4 . . Slashing Weapon 1 | . . . . . . . 1 15 12 7 9 8 . . . . . . Naked Turns . | . . . . . . . . . . . . . . . . . . . Heaviest Build 169 | 12 32 32 61 59 80 84 120 48 61 66 70 77 84 121 121 140 166 169 Greatest Support 235 | 40 40 40 63 60 62 76 84 64 87 112 135 225 225 225 225 225 235 235 Greatest Overweight (x) 3 | . . . . . 1 1 3 . . . . . . . . 1 1 . Average Overweight (x) . | . . . . . . 1 1 . . . . . . . . . . . Largest Inventory Capacity 25 | 8 15 15 20 20 20 20 25 15 15 15 15 15 15 15 15 15 15 15 Average Capacity 17 | 8 13 15 19 20 20 20 23 15 15 15 15 15 15 15 15 15 15 15 Most Carried 25 | 6 14 15 20 20 20 20 25 15 15 15 15 15 15 15 15 15 15 15 Average Carried 16 | 6 9 14 19 20 19 19 19 14 14 14 14 14 14 14 13 14 14 13 Final Capacity 20 | 8 15 15 20 20 20 20 15 15 15 15 15 15 15 15 15 15 15 15 Final Carried 20 | 6 14 15 20 20 20 20 15 15 15 15 15 15 15 14 15 13 15 15 Class Distribution -------------------- 51% | Mutant 10% | Scavenger-Gladiator 5% | Derelict-Tank 4% | Scavenger-Tank 4% | Scavenger-Skirmisher 4% | Hacker-Gunner 3% | Scavenger-Mutant 3% | Scavenger-Gunner Dominant Class ---------------- Mutant | -10/Materials Mutant | -10/Mines Mutant | -9/Materials Mutant | -9/Mines Mutant | -8/Materials Mutant | -8/Garrison Mutant | -8/Materials Mutant | -7/Factory Gladiator | -6/Factory Scavenger-Gladiator | -5/Factory Scavenger-Gladiator | -4/Factory Scavenger-Gladiator | -4/Upper Caves Scavenger-Skirmisher | -4/Upper Caves Derelict-Tank | -4/Warlord Derelict-Tank | -3/Proximity Caves Scavenger-Gunner | -3/Research Hacker-Tank | -2/Research Hacker-Gunner | -1/Access Resources | -11 -10 -10 -9 -9 -8 -8 -8 -7 -6 -5 -4 -4 -4 -4 -3 -3 -2 -1 ----------- Run | Yrd Mat Min Mat Min Mat Gar Mat Fac Fac Fac Fac Upp Upp War Pro Res Res Acc Matter Collected 8328 | 210 644 172 956 20 392 234 569 80 153 177 180 150 693 275 147 2604 326 346 Remotely 560 | . . . . . . . . . . . . . . . . 560 . . Salvage Created 17027 | . 753 180 1557 133 741 846 612 160 346 639 418 272 1183 239 195 4367 492 3894 Parts 768 | . 51 13 126 9 32 35 36 9 11 26 18 4 38 7 10 186 12 145 Haulers Intercepted 21 | . 2 . 6 . 2 . 4 2 2 1 . . . . . 1 1 . Recyclers Shooed 13 | . 3 1 2 . . . . . . . . . . . . 6 . 1 Parts Field Recycled . | . . . . . . . . . . . . . . . . . . . Retrieved Matter . | . . . . . . . . . . . . . . . . . . . Parts Self-Destructed 48 | . . . . . . . . . . . . 5 32 . 11 . . . Prevented 7 | . . . . . . . . . . . . 7 . . . . . . Kills | -11 -10 -10 -9 -9 -8 -8 -8 -7 -6 -5 -4 -4 -4 -4 -3 -3 -2 -1 ------- Run | Yrd Mat Min Mat Min Mat Gar Mat Fac Fac Fac Fac Upp Upp War Pro Res Res Acc Combat Hostiles Destroyed 289 | . 20 4 38 3 17 27 13 . 3 4 6 1 24 15 9 59 5 41 Melee 12 | . . . . . 1 1 . . 1 2 6 1 . . . . . . Guns 61 | . 3 . . . 2 17 9 . . . . . 12 1 3 14 . . Cannons 89 | . . 3 20 3 8 . 4 . . . . . . . 2 35 2 12 AOE 97 | . 17 1 18 . 5 9 . . 2 1 . . 12 14 4 3 . 11 Classes Destroyed 23 | . 9 . 2 1 1 2 . . . . 1 1 . 4 1 1 . . Worker 14 | . 3 . 4 . 2 . 1 . . 1 . . . . . 2 . 1 Builder 15 | . . . 4 . . . . . . 1 . . . . . 3 . 7 Tunneler 3 | . 1 1 . . . . . . . . . . . . . . . 1 Hauler 21 | . 2 . 6 . 2 . 4 2 2 1 . . . . . 1 1 . Recycler 15 | . 2 . 4 . 2 . . 1 . 2 1 . . . . 2 . 1 Mechanic 6 | . 1 . 2 . . . . . . 1 . . . . . . . 2 Operator 3 | . 2 . 1 . . . . . . . . . . . . . . . Drone 1 | . . . . . . . . . . . . . . . 1 . . . Watcher 9 | . 2 . 4 . 1 . . . . . . . . . . 1 . 1 Swarmer 47 | . 6 . 10 . 5 . 5 . . . 1 . 6 5 5 4 . . Saboteur 9 | . . . . . . 7 . . . . 1 . 1 . . . . . Grunt 152 | . 14 4 20 2 8 14 5 . 3 3 2 . 11 6 3 29 . 28 Brawler 8 | . . . . 1 1 . . . . . . . 3 . . 2 . 1 Duelist 8 | . . . . . 1 . . . . . . . 2 . . 3 . 2 Protector 4 | . . . . . . . . . . . . . . 1 . 1 . 2 Sentry 28 | . . . 8 . 2 5 3 . . . . . 1 1 . 6 . 2 Demolisher 1 | . . . . . . . . . . . . . . 1 . . . . Specialist 1 | . . . . . . . . . . . . . . 1 . . . . Hunter 15 | . . . . . . 1 . . . 1 1 . . . . 8 2 2 Programmer 10 | . . . . . . . . . . . 1 . . . . 5 . 4 Heavy 1 | . . . . . . . . . . . . . . . . 1 . . Executioner 4 | . . . . . . . . . . . . . . 1 . . 3 . Thug 1 | . . 1 . . . . . . . . . . . . . . . . Mutant 1 | . . . . . . . . . . . . 1 . . . . . . Best Kill Streak 19 | . 8 5 14 3 6 7 3 1 2 2 2 1 9 12 5 10 5 19 Combat Bots Only 12 | . 5 4 6 3 4 7 3 . 2 2 2 1 9 12 5 8 5 11 Max Kills in Single Turn 5 | . 4 2 5 1 3 3 2 1 2 1 1 1 2 5 2 2 1 4 Gunslinging 1 | . . . . . . 1 1 . . . . . . . . . . . Exploded 5 | . 3 1 4 . 3 3 . . 2 1 . . 2 5 2 1 . 3 Melee 1 | . . . . . 1 1 . . 1 1 1 1 . . . . . . Uniques/NPCs Destroyed . | . . . . . . . . . . . . . . . . . . . Combat | -11 -10 -10 -9 -9 -8 -8 -8 -7 -6 -5 -4 -4 -4 -4 -3 -3 -2 -1 -------- Run | Yrd Mat Min Mat Min Mat Gar Mat Fac Fac Fac Fac Upp Upp War Pro Res Res Acc Hostile Shots Fired 1373 | . 44 6 102 5 57 90 38 . 16 27 41 34 91 22 28 512 88 172 Missed 368 | . 18 . 25 3 19 23 9 . 8 7 18 11 33 6 4 127 16 41 Damage Taken 15497 | . 379 81 1017 21 529 806 570 . 165 351 432 275 1280 435 372 5807 954 2023 Core 1139 | . 47 . 149 . 46 75 22 . . 37 16 11 39 22 . 437 131 107 Absorbed by Shields 2796 | . . . . . . 100 16 . . . . . . 33 64 1229 474 880 Reduced by Siege Mode 575 | . . . . . . . . . . . . . 126 . 14 232 131 72 Redirected to Shielding 35 | . 35 . . . . . . . . . . . . . . . . . Ignored by Resistances 1607 | . . . . . . 86 39 . . 36 53 . 31 26 98 787 437 14 Regen/Repaired (Parts) 361 | . . . 101 . . . 76 . . . . . . 138 . 46 . . Core Remaining (%) 86 | 100 . 81 . 62 . . 74 100 100 96 . . . . 92 66 90 93 Volleys Fired 625 | . 76 10 89 4 41 49 31 . 3 4 3 . 40 18 12 155 25 65 Largest 3 | . 2 2 2 2 2 2 2 . 1 1 1 . 3 2 2 3 3 3 Hottest 330 | . 100 70 112 112 112 160 160 . 33 36 36 . 158 96 96 271 330 330 Shots Fired 1261 | . 119 19 158 8 77 82 61 . 3 4 3 . 98 23 22 391 71 122 Gun 422 | . 86 8 7 . 13 67 43 . . . 1 . 87 5 10 95 . . Cannon 723 | . 1 10 139 8 59 8 18 . . . . . . 10 10 285 71 104 Launcher 92 | . 22 1 12 . 5 7 . . 3 4 2 . 11 . . 7 . 18 Special 24 | . 10 . . . . . . . . . . . . 8 2 4 . . Kinetic 611 | . 87 18 88 4 36 8 33 . . . 1 . 77 15 20 224 . . Thermal 544 | . 10 . 58 4 36 67 28 . . . . . 10 . . 156 71 104 Explosive 79 | . 22 1 12 . 5 7 . . 3 4 2 . 11 8 2 . . 2 Electromagnetic 23 | . . . . . . . . . . . . . . . . 7 . 16 Robot Hit Streak 45 | . 6 12 20 2 9 45 19 . 1 3 2 . 21 8 9 32 20 23 Robot Miss Streak 5 | . 3 1 3 2 3 5 4 . 1 . 1 . 3 2 3 5 1 4 Penetration Max 2 | . . . . . . . . . . . . . 2 . . 2 . . Secondary Targets 5 | . . . . . . 1 1 . . . . . 3 . . . . . Max Gunslinging Chain 1 | . . . . . . 1 1 . . . . . 1 . . . . . Shots Hit Robots 951 | . 60 15 105 3 55 59 48 7 16 19 24 15 78 19 14 275 57 82 Core Hits 758 | . 56 10 83 5 31 60 29 2 13 19 12 4 60 37 12 146 9 170 Critical Kills 34 | . . . . . 2 . . . . . . . 4 . 1 21 2 4 Critical Parts Destroyed 46 | . . . . . . . . . . 2 1 . 6 3 2 32 . . Critical Strikes 115 | . . . 7 . 2 . 1 1 4 3 5 4 10 6 4 62 2 4 Meltdown 7 | . . . . . 1 . . . . . . . . . . . 2 4 Destroy 74 | . . . . . 1 . 1 . . . . . 10 4 3 55 . . Blast 14 | . . . 7 . . . . . . . . . . . . 7 . . Smash 3 | . . . . . . . . . . 2 1 . . . . . . . Sever 17 | . . . . . . . . 1 4 1 4 4 . 2 1 . . . Melee Attacks 126 | . . . . . 3 10 8 9 16 20 28 18 2 11 . 1 . . Impact 39 | . . . . . 3 10 5 . . 7 5 1 . 7 . 1 . . Slashing 78 | . . . . . . . 1 8 16 13 23 17 . . . . . . Piercing . | . . . . . . . . . . . . . . . . . . . Sneak Attacks 27 | . . . . . . . 5 5 3 7 1 . 2 4 . . . . Combat Hostiles 1 | . . . . . . . . . . 1 . . . . . . . . Follow-up Attacks 16 | . . . . . . . . . 1 3 8 4 . . . . . . Damage Inflicted 44159 | . 1572 306 3733 129 1840 2298 1221 401 1087 1900 1186 759 3172 4109 1370 9669 2209 7198 Guns 5836 | . 466 84 47 . 213 1592 731 . . . 18 . 1673 78 189 745 . . Cannons 16026 | . . 142 2169 93 916 . 262 . . . . . . 115 95 7234 2209 2791 Explosions 17068 | . 1086 73 1439 . 617 688 . . 311 723 165 . 1499 3564 969 1597 . 4337 Melee 4279 | . . . . . 36 . 197 401 776 1107 1003 759 . . . . . . Ramming 481 | . 20 7 78 36 58 18 31 . . 70 . . . . . 93 . 70 Kinetic 9078 | . 466 226 1427 49 604 . 459 . . . 18 . 1457 193 284 3895 . . Thermal 14095 | . . . 789 44 585 1592 534 . . 301 . . 216 . . 4314 2209 3511 Explosive 11501 | . 1086 73 1439 . 557 688 . . 311 422 165 . 1499 3564 969 . . 728 Electromagnetic 4256 | . . . . . . . . . . . . . . . . 1367 . 2889 Impact 993 | . . . . . 36 . 133 . . 479 237 108 . . . . . . Slashing 3755 | . . . . . . . 64 401 776 628 766 651 . 352 117 . . . Piercing . | . . . . . . . . . . . . . . . . . . . Highest Corruption 8 | . . . . . . . . . . . 2 . . . . 8 . 2 Average Corruption 5 | . . . . . . . . . . . 1 . . . . 6 . 1 Corruption Purged 2 | . . . . . . . . . . . 2 . . . . . . . Corruption Blocked 37 | . . . . . . . . . . . . . . . . 16 21 . Effects 63 | . . . . . . . . . . . . . . . . 57 . 6 Message Errors 17 | . . . . . . . . . . . . . . . . 14 . 3 Matter Fused 12 | . . . . . . . . . . . . . . . . 12 . . Heat Flow Errors 11 | . . . . . . . . . . . . . . . . 11 . . Energy Discharges 5 | . . . . . . . . . . . . . . . . 4 . 1 Parts Rejected 2 | . . . . . . . . . . . . . . . . 1 . 1 Parts Fused 1 | . . . . . . . . . . . . . . . . 1 . . Data Loss (minor) 5 | . . . . . . . . . . . . . . . . 5 . . Data Loss (major) 2 | . . . . . . . . . . . . . . . . 2 . . Misfires 6 | . . . . . . . . . . . . . . . . 5 . 1 Alerts 1 | . . . . . . . . . . . . . . . . 1 . . Weapon Failures 1 | . . . . . . . . . . . . . . . . 1 . . Overload Shots . | . . . . . . . . . . . . . . . . . . . Overflow Damage 1593 | . 25 . 79 . 64 . 54 36 6 298 122 201 28 61 180 120 97 222 Projectiles 342 | . . . 40 . 8 . 1 . . . . . . . . 118 97 78 Explosions 581 | . 25 . 39 . 42 . . . 6 84 . . 28 61 180 2 . 114 Melee 670 | . . . . . 14 . 53 36 . 214 122 201 . . . . . 30 Knockbacks 57 | . . 1 12 1 4 . 2 . . 3 1 . . . 1 31 . 1 Impact 9 | . . . . 1 . . 2 . . 2 1 . . . . 2 . 1 Kinetic 43 | . . 1 9 . 4 . . . . . . . . . 1 28 . . Secondary 5 | . . . 3 . . . . . . 1 . . . . . 1 . . Self-Inflicted Damage 457 | . 109 6 42 . . 18 . . . . 33 . 54 . . 39 . 156 Shots 24 | . 6 1 2 . . 1 . . . . 1 . 4 . . 1 . 8 Rammed 46 | . 5 3 9 7 7 5 4 . . . . . . . . 4 . 2 Targets Rammed 61 | . 9 3 10 7 8 5 5 . . 7 . . . . . 5 . 2 Kicked 9 | . . . . . . . 1 . . 7 . . . . . 1 . . Crushed 6 | . 4 . 1 . 1 . . . . . . . . . . . . . Highest Temperature 397 | . 98 102 243 216 42 126 108 . . 37 20 5 134 . . 352 199 397 Average Temperature 78 | . 35 34 61 112 15 41 34 . . 12 5 4 62 . . 94 123 117 Received Heat Transfer 3014 | . 129 42 420 12 261 389 183 . 72 102 100 76 210 48 14 706 12 238 Effects 5 | . . . . . . . . . . . . . . . . 3 . 2 Shutdowns 1 | . . . . . . . . . . . . . . . . . . 1 Energy Bleed 2 | . . . . . . . . . . . . . . . . 2 . . Interference 1 | . . . . . . . . . . . . . . . . 1 . . Matter Decay 1 | . . . . . . . . . . . . . . . . . . 1 Siege Activations 16 | . . . . . . . . . . . . . 3 . 1 6 3 3 Total Turns 444 | . . . . . . . . . . . . . 166 . 14 167 49 48 Longest Duration 114 | . . . . . . . . . . . . . 114 . 14 47 29 33 Robots Corrupted 20 | . . . . . . . . . . . . . . . . 7 . 13 Combat Hostiles 20 | . . . . . . . . . . . . . . . . 7 . 13 Parts Fried 44 | . . . . . 2 . . . . 1 1 . . . . 11 . 29 Impact Corruptions 13 | . . . . . 2 . 3 . . 4 1 2 . . . . . 1 Robots Melted 9 | . . . . . 1 . . . . . . . . . . . 3 5 Combat Hostiles 8 | . . . . . 1 . . . . . . . . . . . 3 4 Parts Melted 50 | . . . 1 . 3 17 3 . . . . . . . . 3 8 15 Heat Transferred 14570 | . . . 1369 74 975 3350 1150 . . 150 . . 296 . . 2020 2072 3114 Parts Sabotaged 8 | . . . . . . 4 . . . . . . . . . 4 . . Parts Stolen . | . . . . . . . . . . . . . . . . . . . Parts Stripped . | . . . . . . . . . . . . . . . . . . . Power Chain Reactions 7 | . . . . . . . . . . . . . . . . 4 . 3 Alert | -11 -10 -10 -9 -9 -8 -8 -8 -7 -6 -5 -4 -4 -4 -4 -3 -3 -2 -1 ------- Run | Yrd Mat Min Mat Min Mat Gar Mat Fac Fac Fac Fac Upp Upp War Pro Res Res Acc Peak Influence 1791 | . 480 265 794 367 430 1208 658 27 96 150 127 . . . . 1791 1029 1250 Initial 1007 | . . 128 . 295 6 9 588 . . . 49 . . . . 384 1007 434 Average 406 | . 254 124 408 207 124 671 122 14 28 26 60 . . . . 1118 771 811 Maximum Alert Level 5 | . 2 1 3 1 2 4 2 . . . . . . . . 5 3 4 Low Security (%) 42 | 100 36 70 25 61 73 11 68 100 100 100 100 . . . . . . . Level 1 19 | . 50 29 21 38 23 20 26 . . . . . . . . 7 . . Level 2 16 | . 12 . 37 . 3 21 4 . . . . . . . . 18 50 31 Level 3 12 | . . . 15 . . 21 . . . . . . . . . 17 49 54 Level 4 6 | . . . . . . 25 . . . . . . . . . 30 . 14 Level 5 2 | . . . . . . . . . . . . . . . . 25 . . High Security . | . . . . . . . . . . . . . . . . . . . Max Security . | . . . . . . . . . . . . . . . . . . . Squads Dispatched 60 | . 5 . 7 . 3 . 8 1 2 5 2 . 1 . . 16 . 10 Investigation 14 | . 3 . 3 . 2 . 2 . 1 . . . . . . 3 . . Extermination 6 | . . . . . . . . . . 1 1 . . . . 2 . 2 Reinforcement 21 | . 2 . 4 . 1 . 3 . 1 4 . . . . . 3 . 3 Assault 13 | . . . . . . . . . . . 1 . 1 . . 7 . 4 Garrison 6 | . . . . . . . 3 1 . . . . . . . 1 . 1 Intercept . | . . . . . . . . . . . . . . . . . . . Searches Triggered 1 | . . . . . . . . . . . . . . . . 1 . . Construction Impeded 2 | . . . 1 . . . . . . . . . . . . . . 1 Haulers Reinforced 2 | . . . . . . . . . 1 . . . . . . . . 1 Active Scanning Responses . | . . . . . . . . . . . . . . . . . . . Cargo Convoy Interrupts . | . . . . . . . . . . . . . . . . . . . Stealth | -11 -10 -10 -9 -9 -8 -8 -8 -7 -6 -5 -4 -4 -4 -4 -3 -3 -2 -1 --------- Run | Yrd Mat Min Mat Min Mat Gar Mat Fac Fac Fac Fac Upp Upp War Pro Res Res Acc Distress Signals 22 | . 4 . 3 . 1 . 3 . 1 1 . . . . . 1 5 3 Communications Jammed . | . . . . . . . . . . . . . . . . . . . Distress Signals . | . . . . . . . . . . . . . . . . . . . Times Spotted 451 | . 35 4 56 3 35 30 14 4 14 16 22 4 23 24 11 85 15 56 Peak Tracking Total 10 | . 7 3 6 3 6 5 3 1 4 7 6 3 9 10 5 8 4 7 Tactical Retreats 11 | . . . . . 1 . . . . 1 . 1 3 . 1 4 . . Traps | -11 -10 -10 -9 -9 -8 -8 -8 -7 -6 -5 -4 -4 -4 -4 -3 -3 -2 -1 ------- Run | Yrd Mat Min Mat Min Mat Gar Mat Fac Fac Fac Fac Upp Upp War Pro Res Res Acc Traps Triggered 11 | . 1 . 1 . . 1 1 . 1 . 1 . . . . 5 . . Indirectly 3 | . . . . . . . . . . . . . . . . 3 . . Trap Hack Attempts 50 | . . . . . . 1 49 . . . . . . . . . . . Triggered . | . . . . . . . . . . . . . . . . . . . Disarmed 7 | . . . . . . 1 . 6 . . . . . . . . . . Reprogrammed 6 | . . . . . . . 6 . . . . . . . . . . . Reused 3 | . . . . . . . . . . . . 3 . . . . . . Traps Extracted . | . . . . . . . . . . . . . . . . . . . Installed 3 | . . . . . . . . . . . . 3 . . . . . . Triggered 12 | . . . . . . . . . . . . 5 . 7 . . . . Most Traps Carried 3 | . . . . . . . . . . . . 3 . . . . . . Machines | -11 -10 -10 -9 -9 -8 -8 -8 -7 -6 -5 -4 -4 -4 -4 -3 -3 -2 -1 ---------- Run | Yrd Mat Min Mat Min Mat Gar Mat Fac Fac Fac Fac Upp Upp War Pro Res Res Acc Machines Disabled 25 | . 3 1 2 . 2 7 2 . . 2 . 1 . . . 2 1 2 Max in Single Turn 2 | . 1 1 1 . 1 2 1 . . 2 . 1 . . . 1 1 1 Garrison Access 9 | . . . . . . . 1 1 . . 1 . . . . 1 4 1 Garrison Relay 4 | . . . . . . 4 . . . . . . . . . . . . Phase Generator 1 | . . . . . . 1 . . . . . . . . . . . . Machines Repaired . | . . . . . . . . . . . . . . . . . . . Machines Dismantled . | . . . . . . . . . . . . . . . . . . . Machines Sabotaged . | . . . . . . . . . . . . . . . . . . . Overloaded Fab Kills . | . . . . . . . . . . . . . . . . . . . Hacking | -11 -10 -10 -9 -9 -8 -8 -8 -7 -6 -5 -4 -4 -4 -4 -3 -3 -2 -1 --------- Run | Yrd Mat Min Mat Min Mat Gar Mat Fac Fac Fac Fac Upp Upp War Pro Res Res Acc Machines Accessed 73 | . 8 . 10 . 8 4 14 6 . 1 2 1 . . 1 9 5 4 Terminals 49 | . 5 . 7 . 7 4 9 5 . 1 2 . . . 1 4 1 3 Fabricators . | . . . . . . . . . . . . . . . . . . . Repair Stations 6 | . 1 . 1 . . . 1 . . . . . . . . 2 1 . Recycling Units 7 | . 2 . 1 . . . 2 . . . . . . . . 2 . . Scanalyzers 2 | . . . 1 . . . 1 . . . . . . . . . . . Garrison Access 8 | . . . . . 1 . 1 1 . . . . . . . 1 3 1 Total Hacks 175 | . 24 . 22 . 20 7 37 19 . 3 3 1 . . 1 20 9 9 Successful 81 | . 10 . 9 . 8 1 21 12 . . . 1 . . 1 8 5 5 Failed 92 | . 13 . 12 . 12 6 16 7 . 3 3 . . . . 12 4 4 Catastrophic 15 | . 1 . 2 . 1 1 1 . . 1 1 . . . . 5 1 1 Database Lockouts 2 | . 1 . 1 . . . . . . . . . . . . . . . Manual 64 | . 13 . 11 . 11 . 13 6 . . . . . . . 4 . 6 Terminals 125 | . 17 . 16 . 17 7 27 18 . 3 3 . . . 1 7 1 8 Fabricators . | . . . . . . . . . . . . . . . . . . . Repair Stations 17 | . 1 . 4 . . . 2 . . . . . . . . 8 2 . Recycling Units 13 | . 6 . 1 . . . 3 . . . . . . . . 3 . . Scanalyzers 5 | . . . 1 . . . 4 . . . . . . . . . . . Garrison Access 14 | . . . . . 3 . 1 1 . . . . . . . 2 6 1 Terminal Hacks 40 | . 6 . 3 . 6 1 11 6 . . . 1 . . 1 1 1 3 Record 1 | . . . . . . . . . . . . . . . 1 . . . Robot Schematic 1 | . . . . . . . 1 . . . . . . . . . . . Robot Analysis 8 | . 3 . 2 . 2 . 1 . . . . . . . . . . . Prototype ID Bank 6 | . 1 . 1 . . . 3 1 . . . . . . . . . . Open Door 2 | . . . . . . . . . . . . 1 . . . . . 1 Open DSF 1 | . . . . . . . . . . . . . . . . . 1 . Level Access Points 2 | . . . . . . . . . . . . . . . . 1 . 1 Unreport Threat 9 | . . . . . 3 . 3 2 . . . . . . . . . 1 Locate Traps 3 | . . . . . . . 2 1 . . . . . . . . . . Disarm Traps 1 | . . . . . . . . 1 . . . . . . . . . . Hauler Manifests 3 | . 1 . . . 1 . 1 . . . . . . . . . . . Zone Layout 2 | . 1 . . . . . . 1 . . . . . . . . . . Garrison Registry 1 | . . . . . . 1 . . . . . . . . . . . . Fabricator Hacks . | . . . . . . . . . . . . . . . . . . . Repair Station Hacks 10 | . 1 . 2 . . . 2 . . . . . . . . 4 1 . Scan Component 6 | . . . 1 . . . 1 . . . . . . . . 3 1 . Repair 3 | . . . 1 . . . 1 . . . . . . . . 1 . . Refit 1 | . 1 . . . . . . . . . . . . . . . . . Recycling Unit Hacks 4 | . 1 . . . . . 2 . . . . . . . . 1 . . Retrieve Components 4 | . 1 . . . . . 2 . . . . . . . . 1 . . Scanalyzer 4 | . . . . . . . 4 . . . . . . . . . . . Insert Component 2 | . . . . . . . 2 . . . . . . . . . . . Analyze 2 | . . . . . . . 2 . . . . . . . . . . . Garrison Access Hacks 7 | . . . . . 1 . 1 1 . . . . . . . . 3 1 Unlock Access 1 | . . . . . 1 . . . . . . . . . . . . . Seal Access 6 | . . . . . . . 1 1 . . . . . . . . 3 1 Unauthorized Hacks 16 | . 2 . 4 . 1 . 1 5 . . . . . . . 2 . 1 Terminals 9 | . . . 1 . 1 . . 5 . . . . . . . 1 . 1 Track 2 | . . . . . . . . 2 . . . . . . . . . . Botnet 5 | . . . 1 . 1 . . 1 . . . . . . . 1 . 1 Disrupt 2 | . . . . . . . . 2 . . . . . . . . . . Fabricators . | . . . . . . . . . . . . . . . . . . . Repair Stations 1 | . . . 1 . . . . . . . . . . . . . . . Mechanics 1 | . . . 1 . . . . . . . . . . . . . . . Recycling Units 5 | . 2 . 1 . . . 1 . . . . . . . . 1 . . Reject 3 | . 1 . . . . . 1 . . . . . . . . 1 . . Tunnel 2 | . 1 . 1 . . . . . . . . . . . . . . . Scanalyzers 1 | . . . 1 . . . . . . . . . . . . . . . Extract 1 | . . . 1 . . . . . . . . . . . . . . . Garrison Access . | . . . . . . . . . . . . . . . . . . . Data Cores Recovered 2 | . . . . . . . . 1 . . 1 . . . . . . . Used 1 | . . . . . . . . 1 . . . . . . . . . . Hacking Detections 57 | . 7 . 7 . 8 3 10 5 . 1 2 . . . . 8 3 3 Full Trace Events 11 | . 2 . 1 . 2 3 . . . . . . . . . 3 . . Feedback Events . | . . . . . . . . . . . . . . . . . . . Feedback Blocked . | . . . . . . . . . . . . . . . . . . . Robot Schematics Acquired 1 | . . . . . . . 1 . . . . . . . . . . . Robots Built . | . . . . . . . . . . . . . . . . . . . Authchips . | . . . . . . . . . . . . . . . . . . . Time . | . . . . . . . . . . . . . . . . . . . Total Robot Build Rating . | . . . . . . . . . . . . . . . . . . . Part Schematics Acquired 4 | . . . 2 . . . 2 . . . . . . . . . . . Parts Built . | . . . . . . . . . . . . . . . . . . . Authchips . | . . . . . . . . . . . . . . . . . . . Time . | . . . . . . . . . . . . . . . . . . . Total Part Build Rating . | . . . . . . . . . . . . . . . . . . . Parts Repaired 3 | . . . 1 . . . 1 . . . . . . . . 1 . . Time 109 | . . . 26 . . . 44 . . . . . . . . 39 . . Parts Recycled . | . . . . . . . . . . . . . . . . . . . Recycled Matter . | . . . . . . . . . . . . . . . . . . . Retrieved Matter . | . . . . . . . . . . . . . . . . . . . Retrieved Components 39 | . 10 . . . . . 20 . . . . . . . . 9 . . Parts Scanalyzed 2 | . . . . . . . 2 . . . . . . . . . . . Part Schematics Acquired 2 | . . . . . . . 2 . . . . . . . . . . . Parts Damaged 1 | . . . . . . . 1 . . . . . . . . . . . Bothacking | -11 -10 -10 -9 -9 -8 -8 -8 -7 -6 -5 -4 -4 -4 -4 -3 -3 -2 -1 ------------ Run | Yrd Mat Min Mat Min Mat Gar Mat Fac Fac Fac Fac Upp Upp War Pro Res Res Acc Used RIF Installer . | . . . . . . . . . . . . . . . . . . . Robots Hacked 10 | . . . . . . . 2 1 . . . . . 4 . 3 . . Non-combat 2 | . . . . . . . 2 . . . . . . . . . . . Combat 6 | . . . . . . . . 1 . . . . . 4 . 1 . . Robot Hacks Applied 8 | . . . . . . . 2 1 . . . . . 4 . 1 . . parse_system 6 | . . . . . . . . 1 . . . . . 4 . 1 . . no_distress 2 | . . . . . . . 2 . . . . . . . . . . . Manual 2 | . . . . . . . . . . . . . . . . 2 . . Relay Couplers Released 21 | . . . . . . 17 . . . . 2 . . . . 1 1 . Machine Destruction 21 | . . . . . . 17 . . . . 2 . . . . 1 1 . Fabnet Peak Effective % . | . . . . . . . . . . . . . . . . . . . Robots Rewired 7 | . . . . . . . . . . . . . 2 5 . . . . Allies Hacked . | . . . . . . . . . . . . . . . . . . . Hacks Repelled . | . . . . . . . . . . . . . . . . . . . Allies | -11 -10 -10 -9 -9 -8 -8 -8 -7 -6 -5 -4 -4 -4 -4 -3 -3 -2 -1 -------- Run | Yrd Mat Min Mat Min Mat Gar Mat Fac Fac Fac Fac Upp Upp War Pro Res Res Acc Total Allies 11 | . . . . 2 . . . . . . . . 2 5 . 2 . . Largest Group 7 | . . . . 2 2 . . . . . . . 2 7 . 1 . . Highest-Rated Group 355 | . . . . 56 56 . . . . . . . 97 355 . 116 . . Highest-Rated Ally 116 | . . . . 31 31 . . . . . . . 49 65 . 116 . . Total Orders 11 | . . . . . . . . . . . . . . 6 . 5 . . STAY 2 | . . . . . . . . . . . . . . 2 . . . . ROAM 1 | . . . . . . . . . . . . . . 1 . . . . FOLLOW 3 | . . . . . . . . . . . . . . 3 . . . . EXPLORE 3 | . . . . . . . . . . . . . . . . 3 . . RETURN 2 | . . . . . . . . . . . . . . . . 2 . . Ally Attacks 74 | . . . . . 14 . . . . . . . . 31 . 29 . . Total Damage 3107 | . . . . . 147 . . . . . . . . 1111 . 1849 . . Kills 25 | . . . . . 4 . . . . . . . . 6 . 15 . . Allies Corrupted . | . . . . . . . . . . . . . . . . . . . Allies Melted 3 | . . . . . . . . . . . . . . . . . 3 . Intel | -11 -10 -10 -9 -9 -8 -8 -8 -7 -6 -5 -4 -4 -4 -4 -3 -3 -2 -1 ------- Run | Yrd Mat Min Mat Min Mat Gar Mat Fac Fac Fac Fac Upp Upp War Pro Res Res Acc Robot Analysis Total 8 | . 3 . 2 . 2 . 1 . . . . . . . . . . . Derelict Logs Recovered 8 | . . 2 . 1 . . . . . . . 3 2 . . . . . Drone Launches 3 | . . . . . . . . . . . . . . . . 3 . . Drone Recoveries 3 | . . . . . . . . . . . . . . . . 3 . . Exploration | -11 -10 -10 -9 -9 -8 -8 -8 -7 -6 -5 -4 -4 -4 -4 -3 -3 -2 -1 ------------- Run | Yrd Mat Min Mat Min Mat Gar Mat Fac Fac Fac Fac Upp Upp War Pro Res Res Acc Turns Passed 26783 | 11 1697 924 2896 1031 1720 1739 3853 409 422 673 607 1900 2137 1012 798 2268 1722 964 Spaces Moved 12899 | 5 833 548 1215 590 719 601 1501 274 266 375 371 1304 1166 531 397 863 875 465 Core . | . . . . . . . . . . . . . . . . . . . Treads 9778 | 5 833 548 1215 590 719 601 1304 . . . . 132 1166 531 397 606 666 465 Legs 3121 | . . . . . . . 197 274 266 375 371 1172 . . . 257 209 . Wheels . | . . . . . . . . . . . . . . . . . . . Hover . | . . . . . . . . . . . . . . . . . . . Flight . | . . . . . . . . . . . . . . . . . . . Fastest Speed 105 | 160 160 160 160 170 170 240 163 105 114 120 120 120 160 160 160 120 155 155 Average Speed 168 | 160 160 160 161 170 198 243 234 106 118 120 122 124 160 160 160 167 169 155 Slowest Speed 338 | 160 160 160 170 170 250 246 338 110 120 120 125 163 160 160 160 270 190 155 Overloaded Moves . | . . . . . . . . . . . . . . . . . . . Propulsion Burnouts . | . . . . . . . . . . . . . . . . . . . Robots Hopped . | . . . . . . . . . . . . . . . . . . . Cave-ins Triggered . | . . . . . . . . . . . . . . . . . . . Exploration Rate (%) 54 | 1 97 96 91 98 47 78 96 9 13 11 11 93 90 75 55 31 32 17 Regions Visited 18 Branch Regions 6 Pre-discovered Areas 4 | . 1 . 1 . . . . . . . . 2 . . . . . . Known Exits Taken 10 | . . 1 . . 1 . . . . 1 1 1 1 1 1 1 1 . Unknown Exits Taken 7 | 1 1 . 1 1 . . 1 1 1 . . . . . . . . . Scrap Searched 12 | . . 1 . 2 . . . . . . . 3 4 . 2 . . . Spaces Dug 149 | . 48 . 9 . 8 6 2 . . 15 1 1 20 4 . 6 4 25 Terrain Destroyed 767 | . 131 18 70 2 20 87 3 . 11 47 14 1 78 81 57 66 12 69 Melee 7 | . . . . . . . 1 . . 1 1 1 . 3 . . . . Projectile 126 | . 4 . 8 2 4 . 2 . . . . . 16 3 4 46 12 25 AOE 634 | . 127 18 62 . 16 87 . . 11 46 13 . 62 75 53 20 . 44 Terrain Rammed . | . . . . . . . . . . . . . . . . . . . Walls Destroyed . | . . . . . . . . . . . . . . . . . . . Machines Disabled . | . . . . . . . . . . . . . . . . . . . Actions | -11 -10 -10 -9 -9 -8 -8 -8 -7 -6 -5 -4 -4 -4 -4 -3 -3 -2 -1 --------- Run | Yrd Mat Min Mat Min Mat Gar Mat Fac Fac Fac Fac Upp Upp War Pro Res Res Acc Total 16597 | 7 1063 573 1981 605 930 747 1760 378 351 567 491 1577 1355 658 536 1347 1071 600 Wait 1978 | . 101 2 573 5 99 41 79 70 46 142 71 207 120 23 122 155 75 47 Move 12881 | 4 832 547 1214 589 719 600 1500 273 265 374 370 1303 1165 530 396 862 874 464 Hop . | . . . . . . . . . . . . . . . . . . . Pick Up 176 | . 12 3 24 . 19 7 21 7 4 4 4 11 4 6 2 20 25 3 Fast Attach 131 | . 2 . 7 . 3 3 9 4 4 4 6 9 6 11 . 46 15 2 Attach 47 | . 1 . 3 . 3 3 3 2 2 1 2 2 . 2 1 14 4 4 Detach 32 | . 2 . . . 1 . 5 . 1 . . 4 . 4 . 10 4 1 Swap 221 | 3 21 6 32 . 13 21 18 4 5 8 9 2 12 4 3 37 11 12 Drop 248 | . 7 2 29 . 21 5 32 10 6 6 7 23 6 14 . 42 38 . Fire 625 | . 76 10 89 4 41 49 31 . 3 4 3 . 40 18 12 155 25 65 Melee 107 | . . . . . 3 10 8 8 15 17 19 13 2 11 . 1 . . Ram . | . . . . . . . . . . . . . . . . . . . Kick 9 | . . . . . . . 1 . . 7 . . . . . 1 . . Crush 52 | . 9 3 10 7 8 5 4 . . . . . . . . 4 . 2 Escape Stasis 2 | . . . . . . 2 . . . . . . . . . . . . Rewire 35 | . . . . . . . . . . . . . . 35 . . . . Trap 53 | . . . . . . 1 49 . . . . 3 . . . . . . Miscellaneous . | . . . . . . . . . . . . . . . . . . . Route ------- -11/Scrapyard -10/Materials (discovered 6 exits: *Mat x3 / [*Min x2] / [*Sub]) -10/Mines (discovered 2 exits: *Mat x2) -9/Materials (discovered 5 exits: *Mat x3 / [*Min x2]) -9/Mines (discovered 3 exits: *Mat x2 / [*Zio]) -8/Materials (discovered 5 exits: *Fac x2 / [*Sto x2] / Gar) -8/Garrison (discovered 4 exits: *Mat x4) -8/Materials (discovered 4 exits: *Fac x3 / [*Sto]) -7/Factory (discovered 2 exits: [*Fac] / [*Low]) -6/Factory -5/Factory -4/Factory -4/Upper Caves -4/Upper Caves (discovered 2 exits: *Res / *War) -4/Warlord -3/Proximity Caves -3/Research (discovered 3 exits: *Res x3) -2/Research (discovered 2 exits: *Acc / [*Qua]) -1/Access To Epsilon Eridani History --------- Turn | Location | Event 6 | -11/Scrapyard | Discovered new exit (range 2) 12 | -11/Scrapyard | Entered Materials 313 | -10/Materials | Build established: Mutant 387 | -10/Materials | Discovered new exit (range 7) 541 | -10/Materials | Discovered new exit (range 15) 629 | -10/Materials | Discovered new exit (range 9) 723 | -10/Materials | Discovered new exit (range 7) 992 | -10/Materials | Central database locked down 1277 | -10/Materials | Discovered new exit (range 16) 1618 | -10/Materials | Discovered new exit (range 3) 1709 | -10/Materials | Entered Mines 1718 | -10/Mines | Met a Derelict bent on vengeance 1722 | -10/Mines | Identified exit to Materials 2152 | -10/Mines | Discovered exit to Materials (range 11) 2182 | -10/Mines | Learned Materials stockpile data 2633 | -10/Mines | Entered Materials 2633 | -9/Materials | Evolved 2 slots: Propulsion x1, Utility x1 2899 | -9/Materials | Repaired Lgt. Treads 3431 | -9/Materials | Discovered new exit (range 5) 3562 | -9/Materials | Discovered new exit (range 14) 4760 | -9/Materials | Build established: Scavenger-Mutant 4772 | -9/Materials | Discovered new exit (range 17) 4799 | -9/Materials | Central database locked down 5083 | -9/Materials | Discovered new exit (range 12) 5147 | -9/Materials | Build established: Mutant 5459 | -9/Materials | Discovered new exit (range 10) 5529 | -9/Materials | Entered Mines 5689 | -9/Mines | Discovered new exit (range 6) 5764 | -9/Mines | Discovered new exit (range 3) 6206 | -9/Mines | Deemed a non-threat by the Exiles lab entrance 6275 | -9/Mines | A Derelict revealed a hidden shortcut to a safe place 6316 | -9/Mines | Learned Materials trap positions 6560 | -9/Mines | Entered Materials 6560 | -8/Materials | Accompanied by 2 allies 6560 | -8/Materials | Evolved 2 slots: Utility x2 6561 | -8/Materials | Loaded intel: 16 trap records 6562 | -8/Materials | Discovered new exit (range 8) 6565 | -8/Materials | Led the pair of lost Derelicts to an unsafe place 7257 | -8/Materials | Discovered new exit (range 15) 7295 | -8/Materials | Discovered new exit (range 16) 7676 | -8/Materials | Discovered new exit (range 12) 8280 | -8/Materials | Identified exit to Garrison 8280 | -8/Materials | Entered Garrison 8336 | -8/Garrison | Triggered checkpoint 8403 | -8/Garrison | Garrison Relay disabled 8674 | -8/Garrison | Triggered checkpoint 8834 | -8/Garrison | Garrison Relay disabled 8883 | -8/Garrison | Discovered new exit (range 15) 9165 | -8/Garrison | Phase Generator disabled 9222 | -8/Garrison | Destroyed 7 combat bots 9246 | -8/Garrison | Garrison Relay disabled 9477 | -8/Garrison | Triggered checkpoint 9580 | -8/Garrison | Triggered checkpoint 9640 | -8/Garrison | Discovered new exit (range 3) 9756 | -8/Garrison | Discovered new exit (range 12) 9818 | -8/Garrison | Discovered new exit (range 13) 9818 | -8/Garrison | Discovered new exit (range 68) 9818 | -8/Garrison | Discovered new exit (range 45) 9818 | -8/Garrison | Discovered new exit (range 28) 9880 | -8/Garrison | Garrison Relay disabled 10019 | -8/Garrison | Entered Materials 10053 | -8/Materials | Garrison activated, responded to threat 10493 | -8/Materials | Discovered new exit (range 3) 10703 | -8/Materials | Repaired Med. Reactive Plating 10798 | -8/Materials | Discovered new exit (range 8) 10866 | -8/Materials | Met 7R-MNS 10952 | -8/Materials | Discovered new exit (range 13) 11368 | -8/Materials | Discovered new exit (range 6) 13872 | -8/Materials | Entered Factory 13872 | -7/Factory | Evolved 2 slots: Propulsion x1, Utility x1 13873 | -7/Factory | Caught up to 7R-MNS 14205 | -7/Factory | Garrison activated, responded to threat 14209 | -7/Factory | Discovered new exit (range 9) 14256 | -7/Factory | Discovered new exit (range 5) 14281 | -7/Factory | Entered another Factory area 14281 | -6/Factory | Evolved 2 slots: Power x1, Propulsion x1 14282 | -6/Factory | Caught up to 7R-MNS 14496 | -6/Factory | Build established: Gladiator 14646 | -6/Factory | Discovered new exit (range 15) 14703 | -6/Factory | Entered another Factory area 14703 | -5/Factory | Evolved 2 slots: Propulsion x1, Utility x1 14704 | -5/Factory | Caught up to 7R-MNS 15121 | -5/Factory | Build established: Scavenger-Gladiator 15330 | -5/Factory | Discovered new exit (range 10) 15361 | -5/Factory | Identified exit to Factory 15376 | -5/Factory | Entered another Factory area 15376 | -4/Factory | Evolved 2 slots: Utility x1, Weapon x1 15377 | -4/Factory | Caught up to 7R-MNS 15944 | -4/Factory | Discovered new exit (range 10) 15974 | -4/Factory | 7R-MNS successfully reached the Upper Caves 15982 | -4/Factory | Identified exit to Upper Caves 15983 | -4/Factory | Entered Upper Caves 16007 | -4/Upper Caves | Met a Warlord Commander 16008 | -4/Upper Caves | Learned location of Warlord (-4) 16009 | -4/Upper Caves | Warlord Commander delivered Encrypted Comm Array 16018 | -4/Upper Caves | Learned Research emergency access door positions 16667 | -4/Upper Caves | Learned location of Testing (-3) 16681 | -4/Upper Caves | Learned location of 1 exit from Research 17228 | -4/Upper Caves | Discovered new exit (range 6) 17236 | -4/Upper Caves | Identified exit to Upper Caves 17376 | -4/Upper Caves | Attacked by a delusional Derelict stockpiling parts 17883 | -4/Upper Caves | Entered another Upper Caves area 17951 | -4/Upper Caves | Build established: Scavenger-Tank 18346 | -4/Upper Caves | Build established: Scavenger-Skirmisher 18579 | -4/Upper Caves | Discovered new exit (range 15) 18601 | -4/Upper Caves | Identified exit to Research 18949 | -4/Upper Caves | Learned Research stockpile data 18980 | -4/Upper Caves | Spotted B-86 Titan 19150 | -4/Upper Caves | Discovered new exit (range 14) 19226 | -4/Upper Caves | Attracted the attention of an 0b10 outpost 19263 | -4/Upper Caves | Destroyed 9 combat bots 19454 | -4/Upper Caves | Learned Research non-interactive machine intel 19522 | -4/Upper Caves | Build established: Derelict-Gunner 20015 | -4/Upper Caves | Identified exit to Warlord 20020 | -4/Upper Caves | Entered Warlord 20020 | -4/Warlord | Accompanied by 2 allies 20539 | -4/Warlord | Met Warlord 20564 | -4/Warlord | Warlord's base attacked by MAIN.C 20598 | -4/Warlord | Found Prototype Device 20598 | -4/Warlord | Identified Exp. Cloaking Device 20606 | -4/Warlord | Found Prototype Processor 20606 | -4/Warlord | Identified Spectral Analyzer 20613 | -4/Warlord | Found Exp. Focal Shield 20639 | -4/Warlord | Found Prototype Hackware 20650 | -4/Warlord | Found Prototype Reactor 20754 | -4/Warlord | Found Prototype Special Weapon 20754 | -4/Warlord | Identified RU-N14's Throwing Claymores v3 20759 | -4/Warlord | Found RU-N14's Throwing Claymores v3 20763 | -4/Warlord | Found RU-N14's Throwing Claymores v3 20891 | -4/Warlord | Warlord forces counterattacked 20909 | -4/Warlord | Spotted Striker 20910 | -4/Warlord | P-70 Sage assimilated allied Sentinel 7c 20912 | -4/Warlord | Spotted Striker 20922 | -4/Warlord | Allies destroyed Striker 20969 | -4/Warlord | Lost 14 allies 20991 | -4/Warlord | Spotted Executioner 20995 | -4/Warlord | Destroyed Executioner 21004 | -4/Warlord | Discovered new exit (range 15) 21020 | -4/Warlord | Destroyed 12 combat bots 21025 | -4/Warlord | Identified exit to Proximity Caves 21032 | -4/Warlord | Entered Proximity Caves 21094 | -3/Proximity Caves | Spotter reported a threat 21147 | -3/Proximity Caves | Spotter reported a threat 21222 | -3/Proximity Caves | Build established: Derelict-Tank 21340 | -3/Proximity Caves | Received a Behemoth hack from an annoying Tinkerer 21439 | -3/Proximity Caves | Spotted B-86 Titan 21786 | -3/Proximity Caves | Discovered exit to Research (range 6) 21830 | -3/Proximity Caves | Entered Research 21830 | -3/Research | Evolved 2 slots: Power x1, Utility x1 21831 | -3/Research | Identified exit to Research 21834 | -3/Research | Loaded intel: 84 non-interactive machine locations 22034 | -3/Research | Garrison activated, responded to threat 22080 | -3/Research | Search patrols dispatched 22210 | -3/Research | Spotted B-86 Titan 22300 | -3/Research | Befriended a Behemoth using the annoying Tinkerer's hack 22319 | -3/Research | Lost 3 parts (3u) 22330 | -3/Research | First assault squad dispatched 22620 | -3/Research | Destroyed 8 combat bots 22626 | -3/Research | Lost 3 parts (2u1w) 22673 | -3/Research | Found Gamma Bomb Array 22712 | -3/Research | Spotted B-86 Titan 22719 | -3/Research | Befriended a Behemoth using the annoying Tinkerer's hack 22969 | -3/Research | Identified Vortex Chain Reactor 23116 | -3/Research | Found Fusion Bomb Launcher 23309 | -3/Research | Lost 3 parts (1n2u) 23906 | -3/Research | Build established: Scavenger-Tank 24059 | -3/Research | Repaired Broken Adv. Cooling System 24098 | -3/Research | Entered another Research area 24098 | -2/Research | Warlord forces began assault on 0b10 24098 | -2/Research | Evolved 2 slots: Utility x2 24123 | -2/Research | Distinguished unit "Vikings" dispatched to help 24208 | -2/Research | Research machine network offline 24255 | -2/Research | Met up with Warlord 24498 | -2/Research | Borebot progress halted 24640 | -2/Research | Borebot progress halted 24678 | -2/Research | Found Prototype Launcher 24681 | -2/Research | Identified Mni. Smartbomb Launcher 24687 | -2/Research | Identified System Mapper 24752 | -2/Research | Found Centrium Heavy Armor Plating 24757 | -2/Research | Found Prototype Launcher 24782 | -2/Research | Identified Tactical Quantum Warhead 24806 | -2/Research | Build established: Hacker-Tank 24883 | -2/Research | Found Prototype Device 24886 | -2/Research | Identified Exp. Transmission Jammer 25023 | -2/Research | Discovered new exit (range 15) 25139 | -2/Research | Found Prototype Device 25144 | -2/Research | Borebot progress halted 25160 | -2/Research | Identified Exp. Shock Absorption System 25187 | -2/Research | Build established: Hacker-Skirmisher 25233 | -2/Research | Found Prototype Launcher 25237 | -2/Research | Identified Enh. Gamma Bomb Array 25423 | -2/Research | Found Prototype Reactor 25439 | -2/Research | Identified Zero-point Reactor 25677 | -2/Research | Lost 3 allies 25708 | -2/Research | Spotted Executioner 25710 | -2/Research | Spotted Executioner 25742 | -2/Research | Destroyed Executioner 25751 | -2/Research | Destroyed Executioner 25760 | -2/Research | Spotted Executioner 25771 | -2/Research | Destroyed Executioner 25783 | -2/Research | Found Prototype Processor 25783 | -2/Research | Identified Exp. Core Analyzer 25816 | -2/Research | Discovered new exit (range 5) 25819 | -2/Research | Identified exit to Access 25820 | -2/Research | Entered Access 25820 | -1/Access | Evolved 2 slots: Utility x2 26109 | -1/Access | First assault squad dispatched 26120 | -1/Access | Destroyed 8 combat bots 26127 | -1/Access | Garrison activated, responded to threat 26185 | -1/Access | Destroyed 11 combat bots 26305 | -1/Access | Spotted B-99 Colossus 26378 | -1/Access | Build established: Hacker-Gunner 26444 | -1/Access | Destroyed 9 combat bots 26544 | -1/Access | Identified exit to Surface 26784 | *** | Escaped! Last Messages --------------- 26757_ G-73 Enforcer unfolds itself. 26757_ L-61 Swordsman unfolds itself. 26757_ G-73 Enforcer unfolds itself. 26757_ I-47 Archangel unfolds itself. 26760_ L-61 Swordsman shuts down. 26761_ G-73 Enforcer system terminally corrupted. 26762_ L-61 Swordsman system terminally corrupted. 26762_ Microactuators fried. 26762_ Power Sword fried. 26762_ Gamma Bomb intercepted. 26763_ G-73 Enforcer system terminally corrupted. 26763_ Adv. Heat Sink fried. 26764_ G-73 Enforcer system terminally corrupted. 26764_ Adv. Heat Sink fried. 26764_ Power Amplifier fried. 26764_ Energy Well fried. 26764_ Com. Battery melted. 26764_ Com. Wheel fried. 26764_ Com. Battery fried. 26764_ I-47 Archangel destroyed. Map ----- +----------------------------------------------------+ | # # ??????????????? #????????? | | # # ??????????????? #????????? | | #?######### #???????????? #????????? | | #? # #????????????" ! #????????? | | # # #???????????"" #????????? | | # # #??????????? #????????? | | + # ????????????? #??????? | | # ""Y"" # ??????????????? #??? ?? | | # """""??# ???????????????? ????""" | | #? ??# ?????????????????? ????""T"" | | #? ?# ??????????????????? ??????"" "" | | ###########+#+####################+######? | | #? | | # | | ###################################### # | | #????????????????????????????????????# + | | #????????????????????????????????????# o# | | #????????????????????????????????????# # | | #????????????????????????????????????#R #?######## | | #????????????????????????????###?????# ##???????? | | ????????????????????########## #######u*##???????? | | ????????????????????" =!!=%%=#????????? | | ??????????????BB????" *%=!%=[%#????????? | | ??????????????BB????" ! *!=[#????????? | | ????????????????????" = #????????? | | ????????????????????" "@ #????????? | | ????????????????????" "" #????????? | | ????????????????????" #????????? | | ??????????????BB????" #????????? | | ??????????????BB????" """ """ #????????? | | ????????????????????" """T""" #????????? | | ????????????????????########## #######R #????????? | | ?????????????????????????????###?????? #????????? | | ?????????????????????????????????????? #????????? | | ?????????????????????????????????????? #????????? | | ?????????????????????????????????????? #????????? | | ?????????????????????????????????????? #????????? | | ?????????????????????????????????????????????????? | | ?????????????????????????????????????????????????? | | ?????????????????????????????????????????????????? | | ?????????????????????????????????????????????????? | | ?????????????????????????R???????????????????????? | | ?????????????????????????????????????????????????? | | ?????????????????????????????????????????????????? | | ?????????????????????????????????????????????????? | | ?????????????????????????????????????????????????? | | ?????????????????????????????????????????????????? | | ?????????????????????????????????????????????????? | | ?????????????????????????????????????????????????? | | ?????????????????????????????????????????????????? | +----------------------------------------------------+ Best States ------------- Heat Dissipation 104 Coolant Potential 100 Energy Generation 73 Energy Capacity 940 Matter Stores 300 Matter Capacity 300 Sight Range 20 Robot Scan Range 18 Terrain Scan Range 18 Terrain Scan Density 10 Jamming Range 22 Cloak Strength 4 Corruption Block 8 Armor Coverage 1200 Resistance: KI 30 Resistance: TH 30 Weapon Shielding 33 Melee Speed Boost 20 Phase Shifting 10 Evasion (%) 65 Targeting Accuracy 28 Melee Accuracy 8 Core Analysis 8 Armor Integrity Analysis 40 Recoil Reduction 6 Offensive Hacking 46 Defensive Hacking 10 Authchip Count 4 Item Schematics ----------------- Particle Gun | -9/Materials | Extracted Grenade Launcher | -9/Materials | Extracted Med. Reactive Plating | -8/Materials | Scanalyzed VSS Leg | -8/Materials | Scanalyzed Robot Schematics ------------------ X-57 Shotgunner | -8/Materials | Hacked Fabricated ------------ Nothing Alien Tech Used ----------------- None Achievements -------------- None Challenges ------------ None Game ------ Seed DiametricSmartbombRefractor Manual? 0 Play Time 02:34:03 Cumulative 1549.5 hours Start 2024.05.05 @ 12:16:39 End 2024.05.05 @ 15:51:51 Sessions 5 Manual Loads 0 Difficulty Rogue Special Mode None Game No. 1069 Rogue 1065 Adventurer 4 Explorer 0 Win Type 0 Total 195 Types 143/11/14/9/2/1/3/8/4 Lore% 96 Gallery% 99 Achievement% 98 Wizard Run 0 Options --------- Layout 2 ASCII 0 Keyboard 1 Movement Vi Keybinds 0 Fullscreen 0 Font 24/Terminus Map View 59x48 Zoom Use 0% Tactical HUD 1 Map Filters NONE Filters NONE Steam 1 RUN: 0d02394d-1950-4cb3-9522-713d1bc1b2cb